[Event "1er Festival international de Cassis 2022"]
[Site "Cassis"]
[Date "2022.05.26"]
[Round "2.3"]
[White "Maret, Simon"]
[Black "Sivuk, Vitaly"]
[Result "0-1"]
[TimeControl "1 h 30 + 30 s"]
[WhiteElo "1954"]
[BlackElo "2529"]

1. d4 {[%emt 00:01:03]} Nf6 {[%clk 01:29:26]} {[%emt 00:00:36]} 2. Nf3 {[%clk
01:30:17]} {[%emt 00:01:08]} g6 {[%clk 01:29:47]} {[%emt 00:00:09]} 3. g3
{[%clk 01:29:54]} {[%emt 00:00:54]} c5 {[%clk 01:30:01]} {[%emt 00:00:15]} 4.
c4 {[%clk 01:26:41]} {[%emt 00:03:43]} cxd4 {[%clk 01:27:02]} {[%emt 00:03:29]}
5. Qxd4 {[%clk 01:22:09]} {[%emt 00:05:03]} Bg7 {[%clk 01:25:10]} {[%emt
00:02:21]} 6. Nc3 {[%clk 01:19:31]} {[%emt 00:03:08]} Nc6 {[%clk 01:25:30]}
{[%emt 00:00:09]} 7. Qd3 {[%clk 01:18:00]} {[%emt 00:02:03]} O-O {[%clk
01:24:03]} {[%emt 00:01:56]} 8. e4 {[%clk 01:15:16]} {[%emt 00:03:14]} d6
{[%clk 01:22:52]} {[%emt 00:01:40]} 9. Bg2 {[%clk 01:04:57]} {[%emt 00:10:50]}
Bg4 {[%clk 01:22:52]} {[%emt 00:00:29]} 10. O-O {[%clk 00:51:23]} {[%emt
00:14:04]} Rc8 {[%clk 01:22:14]} {[%emt 00:01:07]} 11. Bf4 {[%clk 00:47:04]}
{[%emt 00:04:50]} Nd7 {[%clk 01:21:37]} {[%emt 00:01:05]} 12. b3 {[%clk
00:40:31]} {[%emt 00:07:05]} Nc5 {[%clk 01:21:03]} {[%emt 00:01:03]} 13. Qd2
{[%clk 00:36:54]} {[%emt 00:04:08]} Qa5 {[%clk 01:19:56]} {[%emt 00:01:35]} 14.
Rac1 {[%clk 00:35:59]} {[%emt 00:01:26]} Bxc3 {[%clk 01:17:11]} {[%emt
00:03:14]} 15. Qxc3 {[%clk 00:35:03]} {[%emt 00:01:26]} Qxc3 {[%clk 01:17:23]}
{[%emt 00:00:18]} 16. Rxc3 {[%clk 00:35:30]} {[%emt 00:00:04]} Nxe4 {[%clk
01:17:44]} {[%emt 00:00:09]} 17. Re3 {[%clk 00:33:55]} {[%emt 00:02:05]} Nc5
{[%clk 01:17:52]} {[%emt 00:00:21]} 18. b4 {[%clk 00:29:54]} {[%emt 00:04:32]}
Ne6 {[%clk 01:17:19]} {[%emt 00:01:02]} 19. Bh6 {[%clk 00:30:16]} {[%emt
00:00:09]} Rfe8 {[%clk 01:17:40]} {[%emt 00:00:08]} 20. b5 {[%clk 00:27:49]}
{[%emt 00:02:59]} Bxf3 {[%clk 01:11:43]} {[%emt 00:06:26]} 21. Rxf3 {[%clk
00:22:33]} {[%emt 00:05:46]} Na5 {[%clk 01:10:00]} {[%emt 00:02:13]} 22. Ra3
{[%clk 00:21:02]} {[%emt 00:02:01]} b6 {[%clk 01:10:18]} {[%emt 00:00:11]} 23.
Bd5 {[%clk 00:13:15]} {[%emt 00:08:18]} Nc7 {[%clk 01:06:03]} {[%emt 00:04:44]}
24. Bg2 {[%clk 00:08:37]} {[%emt 00:05:10]} Ne6 {[%clk 01:03:02]} {[%emt
00:03:30]} 25. Bd5 {[%clk 00:08:30]} {[%emt 00:00:37]} Nc5 {[%clk 01:01:53]}
{[%emt 00:01:38]} 26. Rd1 {[%clk 00:06:06]} {[%emt 00:02:54]} Rc7 {[%clk
01:01:27]} {[%emt 00:00:55]} 27. Rd4 {[%clk 00:04:55]} {[%emt 00:01:42]} Nd7
{[%clk 00:56:51]} {[%emt 00:05:06]} 28. h4 {[%clk 00:00:43]} {[%emt 00:04:44]}
Ne5 {[%clk 00:55:56]} {[%emt 00:01:24]} 29. Bf4 {[%clk 00:00:33]} {[%emt
00:00:40]} Nexc4 {[%clk 00:55:48]} {[%emt 00:00:37]} 30. Bxc4 {[%clk 00:00:38]}
{[%emt 00:00:25]} Nxc4 {[%clk 00:55:56]} {[%emt 00:00:21]} 31. Rc3 {[%clk
00:00:59]} {[%emt 00:00:10]} Rec8 {[%clk 00:56:16]} {[%emt 00:00:09]} 32. Bg5
{[%clk 00:01:03]} {[%emt 00:00:27]} f6 {[%clk 00:56:36]} {[%emt 00:00:09]} 0-1

[Event "1er Festival international de Cassis 2022"]
[Site "Cassis"]
[Date "2022.05.26"]
[Round "2.4"]
[White "Yankelevich, Lev"]
[Black "Belluire, Beatrice"]
[Result "1-0"]
[TimeControl "1 h 30 + 30 s"]
[WhiteElo "2473"]
[BlackElo "1952"]

1. Nf3 {[%clk 01:29:27]} {[%emt 00:01:33]} d5 {[%clk 01:30:26]} {[%emt
00:00:34]} 2. d4 {[%clk 01:29:52]} {[%emt 00:00:05]} Nf6 {[%clk 01:30:46]}
{[%emt 00:00:10]} 3. c4 {[%clk 01:30:11]} {[%emt 00:00:11]} e6 {[%clk
01:31:15]} {[%emt 00:00:02]} 4. g3 {[%clk 01:29:29]} {[%emt 00:01:11]} dxc4
{[%clk 01:31:32]} {[%emt 00:00:13]} 5. Bg2 {[%clk 01:29:56]} {[%emt 00:00:03]}
a6 {[%clk 01:31:47]} {[%emt 00:00:15]} 6. O-O {[%clk 01:30:18]} {[%emt
00:00:08]} Nc6 {[%clk 01:32:00]} {[%emt 00:00:17]} 7. Qd2 {[%clk 01:30:26]}
{[%emt 00:00:22]} Rb8 {[%clk 01:27:33]} {[%emt 00:04:58]} 8. Ne5 {[%clk
01:29:50]} {[%emt 00:01:05]} Nxe5 {[%clk 01:10:45]} {[%emt 00:17:17]} 9. dxe5
{[%clk 01:30:04]} {[%emt 00:00:16]} Qxd2 {[%clk 01:11:07]} {[%emt 00:00:09]} 10.
Nxd2 {[%clk 01:30:22]} {[%emt 00:00:12]} Nd7 {[%clk 01:09:32]} {[%emt
00:02:06]} 11. Nxc4 {[%clk 01:30:38]} {[%emt 00:00:13]} b5 {[%clk 01:05:42]}
{[%emt 00:04:21]} 12. Na5 {[%clk 01:30:52]} {[%emt 00:00:16]} Nxe5 {[%clk
01:05:28]} {[%emt 00:00:44]} 13. Bf4 {[%clk 01:30:10]} {[%emt 00:01:11]} Bb4
{[%clk 01:02:00]} {[%emt 00:03:58]} 14. Bxe5 {[%clk 01:24:00]} {[%emt
00:06:40]} Bxa5 {[%clk 01:02:26]} {[%emt 00:00:05]} 15. Bxg7 {[%clk 01:24:22]}
{[%emt 00:00:07]} Rg8 {[%clk 01:02:48]} {[%emt 00:00:08]} 16. Be5 {[%clk
01:23:28]} {[%emt 00:01:24]} Bb7 {[%clk 01:00:00]} {[%emt 00:03:18]} 17. Rac1
{[%clk 01:19:20]} {[%emt 00:04:37]} Bxg2 {[%clk 00:59:14]} {[%emt 00:01:16]} 18.
Kxg2 {[%clk 01:19:48]} {[%emt 00:00:03]} Kd7 {[%clk 00:45:32]} {[%emt
00:14:12]} 19. Rfd1+ {[%clk 01:19:46]} {[%emt 00:00:32]} Kc8 {[%clk 00:45:43]}
{[%emt 00:00:19]} 20. Rd4 {[%clk 01:08:01]} {[%emt 00:12:14]} Rg5 {[%clk
00:30:32]} {[%emt 00:15:42]} 21. f4 {[%clk 01:03:44]} {[%emt 00:04:47]} Rg6
{[%clk 00:27:33]} {[%emt 00:03:30]} 22. Rd6 {[%clk 00:54:17]} {[%emt 00:09:56]}
Rb6 {[%clk 00:23:39]} {[%emt 00:04:25]} 23. Rd3 {[%clk 00:52:38]} {[%emt
00:02:08]} Rb8 {[%clk 00:17:38]} {[%emt 00:06:31]} 24. Kf3 {[%clk 00:48:47]}
{[%emt 00:04:20]} h5 {[%clk 00:16:25]} {[%emt 00:01:43]} 25. Ra3 {[%clk
00:49:02]} {[%emt 00:00:15]} Bb6 {[%clk 00:14:32]} {[%emt 00:02:24]} 26. Rxa6
{[%clk 00:47:38]} {[%emt 00:01:54]} f6 {[%clk 00:13:24]} {[%emt 00:01:39]} 27.
Bd6 {[%clk 00:47:49]} {[%emt 00:00:18]} Kd7 {[%clk 00:10:25]} {[%emt 00:03:29]}
28. Bc5 {[%clk 00:48:15]} {[%emt 00:00:04]} h4 {[%clk 00:07:20]} {[%emt
00:03:35]} 29. Bxb6 {[%clk 00:48:41]} {[%emt 00:00:04]} cxb6 {[%clk 00:02:29]}
{[%emt 00:05:21]} 30. Ra7+ {[%clk 00:49:08]} {[%emt 00:00:03]} Kd6 {[%clk
00:01:07]} {[%emt 00:01:52]} 31. e4 {[%clk 00:49:34]} {[%emt 00:00:04]} hxg3
{[%clk 00:01:16]} {[%emt 00:00:21]} 32. Rac7 {[%clk 00:50:01]} {[%emt
00:00:03]} Kd5 {[%emt 00:01:15]} 1-0

[Event "1er Festival international de Cassis 2022"]
[Site "Cassis"]
[Date "2022.05.26"]
[Round "2.5"]
[White "Cornileau, Juliette"]
[Black "Movsziszian, Karen"]
[Result "0-1"]
[TimeControl "1 h 30 + 30 s"]
[WhiteElo "1949"]
[BlackElo "2467"]

1. d4 {[%clk 01:30:56]} {[%emt 00:00:03]} d6 {[%clk 01:30:51]} {[%emt
00:00:10]} 2. c4 {[%clk 01:31:13]} {[%emt 00:00:13]} e5 {[%clk 01:30:39]}
{[%emt 00:00:42]} 3. Nf3 {[%clk 01:27:47]} {[%emt 00:03:56]} e4 {[%clk
01:31:02]} {[%emt 00:00:07]} 4. Ng5 {[%clk 01:26:56]} {[%emt 00:01:20]} f5
{[%clk 01:31:30]} {[%emt 00:00:02]} 5. g3 {[%clk 01:16:34]} {[%emt 00:10:52]}
Be7 {[%clk 01:30:29]} {[%emt 00:01:30]} 6. h4 {[%clk 01:09:49]} {[%emt
00:07:16]} Nf6 {[%clk 01:30:56]} {[%emt 00:00:02]} 7. Nc3 {[%clk 01:06:53]}
{[%emt 00:03:26]} c6 {[%clk 01:31:19]} {[%emt 00:00:07]} 8. Bg2 {[%clk
01:03:30]} {[%emt 00:03:53]} Na6 {[%clk 01:31:39]} {[%emt 00:00:10]} 9. a3
{[%clk 00:57:30]} {[%emt 00:06:30]} O-O {[%clk 01:27:51]} {[%emt 00:04:18]} 10.
O-O {[%clk 00:48:51]} {[%emt 00:09:09]} h6 {[%clk 01:26:36]} {[%emt 00:01:44]}
11. Nh3 {[%clk 00:49:17]} {[%emt 00:00:06]} Be6 {[%clk 01:26:50]} {[%emt
00:00:15]} 12. d5 {[%clk 00:44:22]} {[%emt 00:05:25]} Bf7 {[%clk 01:27:18]}
{[%emt 00:00:03]} 13. Nf4 {[%clk 00:37:30]} {[%emt 00:07:22]} Nc7 {[%clk
01:26:28]} {[%emt 00:01:19]} 14. Bh3 {[%clk 00:30:09]} {[%emt 00:07:51]} g5
{[%clk 01:25:17]} {[%emt 00:01:41]} 15. Ne6 {[%clk 00:28:31]} {[%emt 00:02:08]}
Nxe6 {[%clk 01:17:32]} {[%emt 00:08:13]} 16. dxe6 {[%clk 00:27:40]} {[%emt
00:01:22]} Bxe6 {[%clk 01:17:58]} {[%emt 00:00:05]} 17. hxg5 {[%clk 00:27:39]}
{[%emt 00:00:31]} hxg5 {[%clk 01:18:20]} {[%emt 00:00:08]} 18. Bxg5 {[%clk
00:27:20]} {[%emt 00:00:49]} Kg7 {[%clk 01:18:28]} {[%emt 00:00:20]} 19. Kg2
{[%clk 00:21:14]} {[%emt 00:06:38]} Rh8 {[%clk 01:13:07]} {[%emt 00:05:51]} 20.
Rh1 {[%clk 00:16:09]} {[%emt 00:05:35]} Qd7 {[%clk 01:13:17]} {[%emt 00:00:20]}
21. Qd2 {[%clk 00:13:17]} {[%emt 00:03:22]} Rh7 {[%clk 01:09:05]} {[%emt
00:04:43]} 22. Rad1 {[%clk 00:06:53]} {[%emt 00:06:54]} Rah8 {[%clk 01:00:09]}
{[%emt 00:09:25]} 23. Bf4 {[%clk 00:01:59]} {[%emt 00:05:25]} Rd8 {[%clk
00:53:05]} {[%emt 00:07:34]} 24. b3 {[%clk 00:00:41]} {[%emt 00:01:48]} Qe8
{[%clk 00:52:28]} {[%emt 00:01:07]} 25. f3 {[%clk 00:00:45]} {[%emt 00:00:26]}
d5 {[%clk 00:50:22]} {[%emt 00:02:36]} 26. Be5 {[%clk 00:01:08]} {[%emt
00:00:07]} Qg6 {[%clk 00:46:51]} {[%emt 00:04:00]} 27. cxd5 {[%clk 00:01:11]}
{[%emt 00:00:28]} cxd5 {[%clk 00:47:13]} {[%emt 00:00:08]} 28. Nb5 {[%clk
00:01:31]} {[%emt 00:00:10]} Kf7 {[%clk 00:44:30]} {[%emt 00:03:13]} 29. Nc7
{[%clk 00:01:20]} {[%emt 00:00:41]} Bc8 {[%clk 00:44:50]} {[%emt 00:00:09]} 30.
Bxf6 {[%clk 00:00:45]} {[%emt 00:01:06]} Bxf6 {[%clk 00:45:13]} {[%emt
00:00:07]} 31. Nxd5 {[%clk 00:01:04]} {[%emt 00:00:11]} exf3+ {[%clk 00:37:51]}
{[%emt 00:07:52]} 32. exf3 {[%clk 00:01:26]} {[%emt 00:00:09]} Be6 {[%clk
00:38:19]} {[%emt 00:00:02]} 33. Qb4 {[%clk 00:00:46]} {[%emt 00:01:10]} Rg7
{[%clk 00:37:26]} {[%emt 00:01:22]} 34. g4 {[%clk 00:00:35]} {[%emt 00:00:43]}
Rxd5 {[%clk 00:34:37]} {[%emt 00:03:18]} 35. Qxb7+ {[%clk 00:00:35]} {[%emt
00:00:30]} Kf8 {[%clk 00:35:05]} {[%emt 00:00:01]} 36. Qa8+ {[%clk 00:01:02]}
{[%emt 00:00:02]} Qe8 {[%clk 00:35:28]} {[%emt 00:00:07]} 37. Qxe8+ {[%clk
00:00:46]} {[%emt 00:00:47]} Kxe8 {[%clk 00:35:56]} {[%emt 00:00:01]} 38. Rxd5
{[%clk 00:00:32]} {[%emt 00:00:44]} Bxd5 {[%clk 00:36:22]} {[%emt 00:00:02]} 39.
Re1+ {[%clk 00:00:36]} {[%emt 00:00:28]} Kf8 {[%clk 00:36:07]} {[%emt
00:00:44]} 40. Kg3 {[%clk 00:00:42]} {[%emt 00:00:25]} Bxb3 {[%clk 00:35:25]}
{[%emt 00:01:11]} 41. Kf4 {[%clk 00:00:46]} {[%emt 00:00:26]} Bg5+ {[%clk
00:35:24]} {[%emt 00:00:29]} 42. Kxf5 {[%clk 00:00:58]} {[%emt 00:00:20]} Bc2+
{[%clk 00:35:37]} {[%emt 00:00:16]} 0-1

[Event "1er Festival international de Cassis 2022"]
[Site "Cassis"]
[Date "2022.05.26"]
[Round "2.6"]
[White "Sperat Czar, Nicolas"]
[Black "Philippe, Guillaume"]
[Result "0-1"]
[TimeControl "1 h 30 + 30 s"]
[WhiteElo "1943"]
[BlackElo "2405"]

1. d4 {[%clk 01:30:56]} {[%emt 00:00:03]} Nf6 {[%clk 01:30:36]} {[%emt
00:00:25]} 2. c4 {[%clk 01:31:23]} {[%emt 00:00:02]} e6 {[%clk 01:30:51]}
{[%emt 00:00:15]} 3. Nf3 {[%clk 01:31:45]} {[%emt 00:00:08]} Bb4+ {[%clk
01:31:07]} {[%emt 00:00:15]} 4. Nbd2 {[%clk 01:31:36]} {[%emt 00:00:38]} O-O
{[%clk 01:31:13]} {[%emt 00:00:25]} 5. a3 {[%clk 01:31:43]} {[%emt 00:00:22]}
Be7 {[%clk 01:31:33]} {[%emt 00:00:10]} 6. e3 {[%clk 01:29:07]} {[%emt
00:03:05]} c5 {[%clk 01:30:14]} {[%emt 00:01:50]} 7. Be2 {[%clk 01:26:12]}
{[%emt 00:03:24]} cxd4 {[%clk 01:30:34]} {[%emt 00:00:11]} 8. Nxd4 {[%clk
01:25:03]} {[%emt 00:01:39]} Nc6 {[%clk 01:30:37]} {[%emt 00:00:27]} 9. N2f3
{[%clk 01:23:57]} {[%emt 00:01:35]} d6 {[%clk 01:29:10]} {[%emt 00:01:58]} 10.
O-O {[%clk 01:23:56]} {[%emt 00:00:30]} Bd7 {[%clk 01:29:25]} {[%emt 00:00:16]}
11. b4 {[%clk 01:18:48]} {[%emt 00:05:37]} Rc8 {[%clk 01:28:10]} {[%emt
00:01:46]} 12. Bb2 {[%clk 01:18:31]} {[%emt 00:00:46]} Qc7 {[%clk 01:28:10]}
{[%emt 00:00:30]} 13. Rc1 {[%clk 01:18:23]} {[%emt 00:00:37]} Rfd8 {[%clk
01:27:59]} {[%emt 00:00:41]} 14. Qb3 {[%clk 01:17:43]} {[%emt 00:01:10]} Qb8
{[%clk 01:27:56]} {[%emt 00:00:34]} 15. Rfd1 {[%clk 01:17:09]} {[%emt
00:01:03]} Be8 {[%clk 01:28:09]} {[%emt 00:00:18]} 16. Nb5 {[%clk 01:14:21]}
{[%emt 00:03:18]} a6 {[%clk 01:28:20]} {[%emt 00:00:19]} 17. Nc3 {[%clk
01:14:26]} {[%emt 00:00:25]} Nd7 {[%clk 01:27:33]} {[%emt 00:01:16]} 18. h3
{[%clk 01:13:25]} {[%emt 00:01:31]} Nde5 {[%clk 01:26:29]} {[%emt 00:01:35]} 19.
Nxe5 {[%clk 01:11:36]} {[%emt 00:02:19]} Nxe5 {[%clk 01:26:37]} {[%emt
00:00:21]} 20. Bf1 {[%clk 01:05:16]} {[%emt 00:06:51]} b5 {[%clk 01:23:38]}
{[%emt 00:03:30]} 21. cxb5 {[%clk 01:04:18]} {[%emt 00:01:28]} axb5 {[%clk
01:23:04]} {[%emt 00:01:04]} 22. a4 {[%clk 00:47:06]} {[%emt 00:17:41]} bxa4
{[%clk 01:21:37]} {[%emt 00:01:57]} 23. Nxa4 {[%clk 00:47:04]} {[%emt
00:00:32]} d5 {[%clk 01:05:50]} {[%emt 00:16:18]} 24. b5 {[%clk 00:43:34]}
{[%emt 00:04:00]} Nc4 {[%clk 00:47:09]} {[%emt 00:19:10]} 25. Bxc4 {[%clk
00:35:14]} {[%emt 00:08:50]} dxc4 {[%clk 00:46:31]} {[%emt 00:01:08]} 26. Rxd8
{[%clk 00:32:35]} {[%emt 00:03:08]} Rxd8 {[%clk 00:46:58]} {[%emt 00:00:04]} 27.
Qxc4 {[%clk 00:31:30]} {[%emt 00:01:35]} Bxb5 {[%clk 00:47:06]} {[%emt
00:00:23]} 28. Qg4 {[%clk 00:29:40]} {[%emt 00:02:18]} Bf8 {[%clk 00:42:48]}
{[%emt 00:04:48]} 29. Nc3 {[%clk 00:24:59]} {[%emt 00:05:11]} Bd3 {[%clk
00:43:00]} {[%emt 00:00:18]} 30. Ba1 {[%clk 00:23:27]} {[%emt 00:02:01]} Bg6
{[%clk 00:42:47]} {[%emt 00:00:43]} 31. Rd1 {[%clk 00:19:50]} {[%emt 00:04:07]}
Rc8 {[%clk 00:42:41]} {[%emt 00:00:36]} 32. Qd4 {[%clk 00:19:15]} {[%emt
00:01:06]} Qb3 {[%clk 00:42:15]} {[%emt 00:00:55]} 33. Ne2 {[%clk 00:14:58]}
{[%emt 00:04:47]} f6 {[%clk 00:34:13]} {[%emt 00:08:33]} 34. Qd7 {[%clk
00:14:29]} {[%emt 00:00:58]} Bf7 {[%clk 00:31:05]} {[%emt 00:03:38]} 35. Qd3
{[%clk 00:11:20]} {[%emt 00:03:39]} Qb8 {[%clk 00:31:22]} {[%emt 00:00:13]} 36.
Nf4 {[%clk 00:10:03]} {[%emt 00:01:48]} Qb7 {[%clk 00:28:28]} {[%emt 00:03:24]}
37. Rb1 {[%clk 00:06:56]} {[%emt 00:03:37]} Qc6 {[%clk 00:28:08]} {[%emt
00:00:45]} 38. Bb2 {[%clk 00:05:33]} {[%emt 00:01:59]} e5 {[%clk 00:26:55]}
{[%emt 00:01:43]} 39. Ne2 {[%clk 00:05:15]} {[%emt 00:00:48]} Rb8 {[%clk
00:26:53]} {[%emt 00:00:32]} 40. Rc1 {[%clk 00:05:15]} {[%emt 00:00:29]} Qa4
{[%clk 00:26:21]} {[%emt 00:01:01]} 41. Ra1 {[%emt 00:00:40]} Bc4 {[%clk
00:23:21]} {[%emt 00:03:27]} 42. Rxa4 {[%clk 00:03:36]} {[%emt 00:02:03]} Bxd3
{[%clk 00:23:40]} {[%emt 00:00:11]} 43. Nc1 {[%clk 00:03:51]} {[%emt 00:00:15]}
Bc2 {[%clk 00:24:01]} {[%emt 00:00:10]} 0-1

[Event "1er Festival international de Cassis 2022"]
[Site "Cassis"]
[Date "2022.05.26"]
[Round "2.7"]
[White "Petrosyan, Armen"]
[Black "Masson, Valentin"]
[Result "1-0"]
[TimeControl "1 h 30 + 30 s"]
[WhiteElo "2396"]
[BlackElo "1911"]

1. e4 {[%clk 01:30:56]} {[%emt 00:00:03]} e6 {[%clk 01:30:55]} {[%emt
00:00:05]} 2. d4 {[%clk 01:31:20]} {[%emt 00:00:06]} d5 {[%clk 01:31:20]}
{[%emt 00:00:05]} 3. Nc3 {[%clk 01:31:41]} {[%emt 00:00:10]} Nf6 {[%clk
01:31:43]} {[%emt 00:00:07]} 4. e5 {[%clk 01:31:59]} {[%emt 00:00:12]} Nfd7
{[%clk 01:32:06]} {[%emt 00:00:07]} 5. f4 {[%clk 01:32:25]} {[%emt 00:00:04]}
c5 {[%clk 01:32:32]} {[%emt 00:00:04]} 6. Nf3 {[%clk 01:32:50]} {[%emt
00:00:05]} Nc6 {[%clk 01:32:56]} {[%emt 00:00:06]} 7. Be3 {[%clk 01:33:13]}
{[%emt 00:00:07]} Be7 {[%clk 01:33:20]} {[%emt 00:00:05]} 8. a3 {[%clk
01:33:23]} {[%emt 00:00:21]} O-O {[%clk 01:29:11]} {[%emt 00:04:38]} 9. dxc5
{[%clk 01:33:36]} {[%emt 00:00:17]} Bxc5 {[%clk 01:24:23]} {[%emt 00:05:18]} 10.
Bxc5 {[%clk 01:33:16]} {[%emt 00:00:51]} Nxc5 {[%emt 00:01:30]} 11. b4 {[%clk
01:32:25]} Nd7 {[%clk 01:24:14]} {[%emt 00:01:01]} 12. Bd3 {[%clk 01:30:39]}
{[%emt 00:02:16]} f6 {[%clk 01:19:56]} {[%emt 00:04:48]} 13. b5 {[%clk
01:28:34]} {[%emt 00:02:35]} Na5 {[%clk 01:14:39]} {[%emt 00:05:47]} 14. O-O
{[%clk 01:24:40]} {[%emt 00:04:24]} Qc7 {[%clk 01:02:39]} {[%emt 00:12:29]} 15.
Qd2 {[%clk 01:19:45]} {[%emt 00:05:26]} Nc5 {[%clk 00:55:08]} {[%emt 00:08:01]}
16. Rab1 {[%clk 01:13:17]} {[%emt 00:06:57]} f5 {[%clk 00:51:00]} {[%emt
00:04:37]} 17. Ne2 {[%clk 01:08:11]} {[%emt 00:05:37]} Bd7 {[%clk 00:45:38]}
{[%emt 00:05:52]} 18. Nfd4 {[%clk 01:07:43]} {[%emt 00:00:58]} b6 {[%clk
00:32:34]} {[%emt 00:13:34]} 19. Qe3 {[%clk 01:03:24]} {[%emt 00:04:48]} Ne4
{[%clk 00:30:02]} {[%emt 00:03:02]} 20. g4 {[%clk 01:03:21]} {[%emt 00:00:34]}
g6 {[%clk 00:28:51]} {[%emt 00:01:41]} 21. gxf5 {[%clk 01:03:18]} {[%emt
00:00:33]} gxf5 {[%clk 00:28:57]} {[%emt 00:00:24]} 22. Rb4 {[%clk 00:57:09]}
{[%emt 00:06:39]} Nc4 {[%clk 00:25:14]} {[%emt 00:04:12]} 23. Bxc4 {[%clk
00:57:21]} {[%emt 00:00:18]} dxc4 {[%clk 00:25:33]} {[%emt 00:00:11]} 24. Ng3
{[%clk 00:56:34]} {[%emt 00:01:18]} Nxg3 {[%clk 00:25:06]} {[%emt 00:00:58]} 25.
hxg3 {[%clk 00:56:15]} {[%emt 00:00:48]} Kf7 {[%clk 00:23:24]} {[%emt
00:02:12]} 26. Kf2 {[%clk 00:55:29]} {[%emt 00:01:16]} a5 {[%clk 00:22:19]}
{[%emt 00:01:35]} 27. Rbb1 {[%clk 00:55:36]} {[%emt 00:00:23]} h5 {[%clk
00:21:31]} {[%emt 00:01:19]} 28. Rh1 {[%clk 00:54:57]} {[%emt 00:01:09]} Rh8
{[%clk 00:20:44]} {[%emt 00:01:17]} 29. Nf3 {[%clk 00:52:43]} {[%emt 00:02:44]}
Bc8 {[%clk 00:12:10]} {[%emt 00:09:04]} 30. Rbd1 {[%clk 00:46:13]} {[%emt
00:07:00]} Bb7 {[%clk 00:11:17]} {[%emt 00:01:22]} 31. Rd6 {[%clk 00:46:16]}
{[%emt 00:00:27]} Bxf3 {[%clk 00:09:00]} {[%emt 00:02:48]} 32. Qxf3 {[%clk
00:46:32]} {[%emt 00:00:14]} Qc5+ {[%clk 00:06:36]} {[%emt 00:02:54]} 33. Kg2
{[%clk 00:46:44]} {[%emt 00:00:18]} Ra7 {[%clk 00:04:20]} {[%emt 00:02:45]} 34.
Rxh5 {[%clk 00:46:47]} {[%emt 00:00:27]} Rg8 {[%clk 00:03:27]} {[%emt
00:01:23]} 35. Rh7+ {[%clk 00:46:13]} {[%emt 00:01:05]} Rg7 {[%clk 00:03:50]}
{[%emt 00:00:07]} 36. Qh5+ {[%clk 00:46:33]} {[%emt 00:00:10]} 1-0